bitfinex/quotes_ETHUSD_20251108
["timestamp","ask_amount","ask_price","bid_price","bid_amount"]
[1762603708626,0.4254,3416.0,3415.9,0.001]
[1762603708794,0.9169925,3416.0,3415.9,0.001]
[1762603709422,0.1456,3416.0,3415.9,3.41678616]
[1762603710027,0.1456,3416.0,3415.9,3.89358616]
[1762603711330,0.1456,3416.0,3415.9,4.59240264]
[1762603711515,0.002,3416.4,3415.9,1.66491648]
[1762603711696,0.45918203,3416.3,3416.0,2.92731933]
[1762603712218,0.45918203,3416.3,3416.1,2.92728581]
[1762603712422,0.45918203,3416.3,3416.2,2.92722908]
[1762603713125,0.45918203,3416.3,3416.2,3.38662908]
[1762603713293,0.002,3416.4,3416.3,2.9271434]
[1762603713499,0.002,3416.4,3416.3,3.3865434]
[1762603714225,0.002,3416.4,3416.3,0.4594]
[1762603714426,0.002,3416.4,3416.3,2.9271434]
[1762603714618,2.00459417,3416.9,3416.4,2.9270412]
[1762603714814,0.42949457,3416.8,3416.4,2.9270412]
[1762603715126,0.1525,3416.5,3416.4,2.9270412]
[1762603715330,0.1525,3416.5,3416.1,0.1861]
[1762603715514,0.1525,3416.5,3416.4,2.92705772]
[1762603715724,0.1525,3416.5,3416.3,2.92705967]
[1762603716025,0.1525,3416.5,3416.4,2.92705772]
[1762603716326,0.61169068,3416.5,3416.4,2.92705772]
[1762603716530,0.61169068,3416.5,3416.1,2.92730696]
[1762603716531,0.82380463,3416.5,3416.1,2.92730696]
[1762603716828,0.4707,3416.2,3416.1,2.92731477]
[1762603717430,0.002,3416.4,3416.3,2.9271434]
[1762603717804,0.1545,3416.4,3416.0,0.001]
[1762603718006,0.4644,3416.2,3416.1,2.92725533]
[1762603718243,0.7736608,3416.4,3416.2,2.92722885]
[1762603718532,0.4613,3416.3,3416.2,2.92722885]
[1762603718710,0.62,3416.3,3416.1,2.92727859]
[1762603719028,0.6179608,3416.4,3416.0,2.92840008]
[1762603719326,0.4707,3416.1,3416.0,2.92840008]
[1762603720750,0.002,3416.4,3416.2,2.92717971]
[1762603721116,0.002,3416.4,3416.1,2.92730233]
[1762603721320,0.002,3416.4,3416.3,2.9271434]
[1762603721521,0.002,3416.4,3416.2,2.92719381]
[1762603721731,0.002,3416.4,3416.3,2.9271434]
[1762603722051,0.002,3416.4,3416.3,3.3865434]
[1762603722242,0.61805666,3416.4,3416.3,3.8798434]
[1762603722440,0.002,3416.4,3416.3,4.57926114]
[1762603723341,0.002,3416.4,3416.3,3.8798434]
[1762603725774,0.002,3416.4,3416.3,3.3865434]
[1762603726050,0.002,3416.4,3416.3,3.8539434]
[1762603728723,0.002,3416.4,3416.3,3.3865434]
[1762603730782,0.0065,3416.4,3416.3,2.9271434]
[1762603730975,0.0065,3416.4,3416.1,2.92723397]
[1762603731174,0.0065,3416.4,3416.0,0.001]
[1762603731367,0.1456,3416.1,3416.0,2.92840046]
[1762603731565,0.1501,3416.1,3416.0,2.92840046]
[1762603732377,0.1456,3416.1,3416.0,2.92840046]
[1762603732777,0.002,3416.4,3416.3,2.9271434]
[1762603734180,0.002,3416.4,3416.3,3.3813434]
[1762603734378,0.002,3416.4,3416.3,3.3823434]
[1762603734877,0.002,3416.4,3416.3,4.54661109]
[1762603735176,0.002,3416.4,3416.3,3.8497434]
[1762603735382,0.002,3416.4,3416.3,3.3823434]
[1762603735677,0.002,3416.4,3416.3,3.8497434]
[1762603736775,0.002,3416.4,3416.3,3.3823434]
[1762603738096,0.002,3416.4,3416.3,4.54661109]
[1762603739498,0.4554,3416.4,3416.3,2.9281434]
[1762603740572,0.002,3416.4,3416.3,3.86444883]
[1762603740839,0.002,3416.4,3416.3,3.8497434]
[1762603741678,0.002,3416.4,3416.3,3.3823434]
[1762603741999,0.002,3416.4,3416.3,3.8606434]
[1762603742298,0.002,3416.4,3416.3,4.55860098]
[1762603743270,0.002,3416.4,3416.3,4.57330641]
[1762603744719,0.002,3416.4,3416.3,4.55860098]
[1762603744926,0.002,3416.4,3416.3,4.96410498]
[1762603750823,0.002,3416.4,3416.3,10.01381698]
[1762603751385,0.002,3417.0,3416.9,2.9266294]
[1762603751690,0.002,3417.3,3417.2,2.92637246]
[1762603751922,0.002,3417.3,3417.2,3.38957246]
[1762603752441,0.1476,3417.3,3417.2,3.38957246]
[1762603754218,0.1524,3417.3,3417.2,2.92637246]
[1762603754607,0.1476,3417.3,3417.2,3.38957246]
[1762603754812,0.1476,3417.3,3417.2,4.60571919]
[1762603756546,0.002,3417.3,3417.2,4.60571919]
[1762603756718,0.002,3417.3,3417.2,4.75131919]
[1762603757614,0.1456,3417.7,3417.2,9.38277292]
[1762603757821,1e-08,3417.4,3417.3,3.86778683]
[1762603758118,1e-08,3417.4,3417.3,4.71134441]
[1762603758514,1e-08,3417.4,3417.3,5.13153242]
[1762603758738,1e-08,3417.4,3417.3,5.11684841]
[1762603765251,1e-08,3417.4,3417.3,9.74830214]
[1762603765571,1e-08,3417.4,3417.3,3.76984441]
[1762603765777,1e-08,3417.4,3417.3,4.23304441]
[1762603766925,1e-08,3417.4,3417.3,4.71134441]
[1762603767132,1e-08,3417.4,3417.3,4.71234441]
[1762603767538,1e-08,3417.4,3417.3,9.34379814]
[1762603768450,1e-08,3417.4,3417.3,4.71234441]
[1762603769634,1e-08,3417.4,3417.3,5.11784841]
[1762603773962,1e-08,3417.4,3417.3,10.16756041]
[1762603775986,1e-08,3417.4,3417.3,9.22606041]
[1762603776191,1e-08,3417.4,3417.3,9.67976041]
[1762603777476,1e-08,3417.4,3417.3,10.14216041]
[1762603783012,1e-08,3417.4,3417.3,9.67976041]
[1762603783899,0.11840001,3417.4,3417.3,3.07288683]
[1762603784587,1e-08,3417.4,3417.3,3.56668683]
[1762603784780,1e-08,3417.4,3417.3,5.23190283]
[1762603784980,0.005,3417.9,3417.8,2.92585873]
[1762603785422,0.002,3418.1,3417.8,6.34551746]
[1762603785593,0.002,3418.1,3418.0,3.41948753]
[1762603786885,0.002,3418.1,3418.0,7.62966056]
[1762603787215,0.002,3418.1,3418.0,4.32239153]
[1762603788314,0.002,3418.1,3418.0,8.95065639]
[1762603789219,0.002,3418.1,3418.0,14.00036839]
[1762603789382,0.002,3418.1,3418.0,15.14060389]
[1762603793339,1e-08,3418.8,3418.7,2.92508848]
[1762603793516,1e-08,3418.8,3418.7,8.04715334]
[1762603793716,1e-08,3418.8,3418.7,8.95005734]
[1762603794940,1e-08,3418.8,3418.7,9.09565734]
[1762603795137,1e-08,3418.8,3418.7,9.73020909]
[1762603795838,1e-08,3418.8,3418.7,10.98992109]
[1762603799217,1e-08,3418.8,3418.7,15.61818595]
[1762603799552,1e-08,3418.8,3418.7,14.77992109]
[1762603799735,1e-08,3418.8,3418.7,14.89708175]
[1762603799954,1e-08,3418.8,3418.7,19.52534661]
[1762603802053,1e-08,3418.8,3418.7,19.91303398]
[1762603802351,1e-08,3419.2,3419.1,5.24466227]
[1762603802651,1e-08,3419.2,3419.1,11.02780813]
[1762603802826,1e-08,3419.2,3419.1,11.46566263]
[1762603803032,1e-08,3419.2,3419.1,15.25566263]
[1762603803232,1e-08,3419.2,3419.1,15.3728082]
[1762603803923,1e-08,3419.9,3419.8,3.79725161]
[1762603804117,1e-08,3419.9,3419.8,8.42551647]
[1762603805452,1e-08,3419.9,3419.8,7.95791647]
[1762603805649,1e-08,3419.9,3419.8,8.59246822]
[1762603805843,1e-08,3419.9,3419.8,12.38246822]
[1762603806040,1e-08,3419.9,3419.8,13.30256822]
[1762603806834,1e-08,3419.9,3419.8,14.56228022]
[1762603808359,1e-08,3419.9,3419.8,14.10978022]
[1762603808932,1e-08,3419.9,3419.8,13.64218022]
[1762603809252,1e-08,3419.9,3419.8,14.10978022]
[1762603810234,1e-08,3419.9,3419.8,14.56228022]
[1762603810760,1e-08,3419.9,3419.8,15.05688022]
[1762603811124,1e-08,3419.9,3419.8,19.68514508]
[1762603812238,1e-08,3419.9,3419.8,19.83074508]
[1762603814374,1e-08,3419.9,3419.8,15.30067644]
[1762603815278,1e-08,3419.9,3419.8,18.38767644]
[1762603815790,1e-08,3420.9,3420.8,3.32879679]
[1762603816017,1e-08,3420.9,3420.8,3.79639679]
[1762603816445,1e-08,3420.9,3420.8,4.26350595]
[1762603816646,1e-08,3420.9,3420.8,8.97535787]
[1762603816953,1e-08,3420.9,3420.8,10.23506987]
[1762603817273,1e-08,3420.9,3420.8,10.86962162]
[1762603817476,1e-08,3421.5,3421.4,2.92278014]
[1762603817651,0.4996,3421.9,3421.8,2.92243848]
[1762603818364,0.4996,3421.9,3421.8,3.32794248]
[1762603818365,0.3664,3421.9,3421.8,3.32794248]
[1762603818576,0.37,3421.9,3421.8,2.92243848]
[1762603821565,0.3664,3421.9,3421.8,2.92243848]
[1762603821765,0.37,3421.9,3421.8,2.92243848]
[1762603821971,0.37,3421.9,3421.8,2.91854414]
[1762603822187,0.3664,3421.9,3421.8,2.91854414]
[1762603822503,0.5531,3421.9,3421.8,2.91854414]
[1762603824900,0.3664,3421.9,3421.8,2.91854414]
[1762603825387,0.3646,3421.9,3421.8,3.32404814]
[1762603825764,0.3646,3421.9,3421.8,3.46964814]
[1762603825960,0.0598,3421.9,3421.8,4.09430583]
[1762603826163,0.0598,3421.9,3421.8,3.46964814]
[1762603826660,0.005,3421.9,3421.8,3.46964814]
[1762603827059,0.0598,3421.9,3421.8,3.46964814]
[1762603827875,1e-08,3421.9,3421.8,3.93724814]
[1762603828092,1e-08,3421.9,3421.8,4.38974814]
[1762603828293,1e-08,3421.9,3421.8,5.12097583]
[1762603828500,1e-08,3421.9,3421.8,4.66847583]
[1762603829179,1e-08,3421.9,3421.8,4.20087583]
[1762603829371,1e-08,3421.9,3421.8,4.66847583]
[1762603830304,0.05480001,3421.9,3421.8,4.20087583]
[1762603831071,0.05480001,3421.9,3421.8,3.79537183]
[1762603831072,1e-08,3421.9,3421.8,3.79537183]
[1762603831602,0.48040001,3421.9,3421.8,3.79537183]
[1762603832097,0.73420001,3421.9,3421.8,2.91854414]
[1762603836604,1.99391201,3421.9,3420.4,2.92359645]
[1762603836809,1.99391201,3421.9,3420.6,3.65766372]
[1762603836810,0.2584,3420.7,3420.6,3.65766372]
[1762603837116,0.7298,3420.7,3420.6,2.92346371]
[1762603837269,0.7298,3420.7,3419.1,3.11784252]
[1762603837470,0.2648,3419.9,3419.1,0.006]
[1762603837693,0.88161385,3419.9,3419.8,2.92514761]
[1762603837971,0.0731,3419.9,3419.8,2.92514761]
[1762603838310,0.4754,3420.5,3420.4,2.92363466]
[1762603838473,0.4754,3420.5,3419.8,1.04143913]
[1762603838474,0.5452,3420.5,3419.8,0.58593913]
[1762603838678,0.2629,3419.9,3419.8,2.92514761]
[1762603839103,0.7369,3419.9,3419.8,2.92514761]
[1762603840921,0.7369,3419.9,3419.8,0.001]
[1762603841413,0.7369,3419.9,3419.8,2.92514761]
[1762603843123,0.2629,3419.9,3419.8,2.92514761]
[1762603843319,0.4546,3419.9,3419.8,2.92514761]
[1762603843710,0.7389,3419.9,3419.8,2.92514761]
[1762603843912,0.4546,3419.9,3419.8,2.92514761]
[1762603844110,0.6464,3420.7,3420.6,2.92346371]
[1762603844611,0.7337,3420.7,3420.6,2.92346371]
[1762603849237,0.2719,3420.7,3420.6,2.92346371]
[1762603849548,0.0873,3420.7,3420.6,2.92346371]
[1762603850043,0.5453,3420.7,3420.6,2.92346371]
[1762603850941,0.0873,3420.7,3420.6,2.92346371]
[1762603851513,0.5453,3420.7,3420.6,2.92346371]
[1762603854042,0.5453,3420.7,3420.0,0.1456]
[1762603854232,0.0865,3420.1,3419.9,2.92403888]
[1762603854435,0.1456,3420.4,3420.3,2.92372014]
[1762603854633,0.6946,3420.4,3420.3,2.92372014]
[1762603855314,0.5989,3420.4,3420.3,2.92372014]
[1762603855863,0.4533,3420.4,3420.3,2.92372014]
[1762603856047,0.1456,3420.6,3420.5,2.92354918]
[1762603856441,0.2329,3420.6,3420.5,2.92354918]
[1762603856645,0.1456,3420.6,3420.5,2.92354918]
[1762603856951,0.2329,3420.6,3420.5,2.92354918]
[1762603857370,0.1456,3420.6,3420.5,2.92354918]
[1762603857647,0.1846,3421.0,3420.9,2.92320734]
[1762603857816,0.2719,3421.0,3420.9,2.92320734]
[1762603858625,0.80182042,3421.9,3421.5,2.92268]
[1762603858822,0.18690001,3421.9,3421.5,2.92268]
[1762603859141,0.1456,3421.5,3421.0,0.01459378]
[1762603859349,0.0967,3421.8,3421.3,2.92279945]
[1762603859545,0.4618,3421.7,3421.3,2.92279945]
[1762603859731,0.0883,3421.4,3421.3,2.92279945]
[1762603860133,0.5463,3421.4,3421.3,2.92279945]
[1762603860327,0.1456,3421.3,3421.1,2.92303193]
[1762603860529,0.0046,3421.2,3421.1,2.92303193]
[1762603860947,0.64870001,3421.9,3421.8,2.92243848]
[1762603861156,0.18690001,3421.9,3421.8,2.92243848]
[1762603861357,0.25850001,3421.9,3421.7,2.92248881]
[1762603861557,0.1456,3421.8,3421.7,2.92248881]
[1762603861862,0.2172,3421.8,3421.7,2.92248881]
[1762603862061,0.6918,3421.8,3421.2,0.1456]
[1762603862235,0.0709,3421.3,3421.1,3.79]
[1762603862438,0.0054,3421.2,3421.1,3.79]
[1762603862637,0.0054,3421.2,3420.3,0.1456]
[1762603862851,0.4787,3421.8,3420.3,0.1456]
[1762603862852,0.0662,3420.9,3420.8,2.92329279]
[1762603863050,0.7295,3420.9,3420.8,2.92329279]
[1762603863434,0.2508,3420.9,3420.8,2.92329279]
[1762603866260,0.0662,3420.9,3420.8,2.92329279]
[1762603867164,0.61593673,3421.8,3420.8,0.4687]
[1762603867363,0.1456,3421.0,3420.9,2.92320734]
[1762603867770,0.1456,3421.0,3420.9,3.39190734]
[1762603868084,0.1456,3421.0,3420.9,2.92320734]
[1762603870369,0.1456,3421.0,3420.9,3.39190734]
[1762603870588,0.61760269,3421.7,3420.9,0.9402]
[1762603870795,0.61760269,3421.7,3420.2,1.259712]
[1762603870796,0.4787,3421.7,3420.2,1.259712]
[1762603870935,0.0706,3421.0,3420.9,2.92320734]
[1762603871146,0.4746,3421.6,3421.5,2.92269472]
[1762603871349,1.092193,3421.6,3421.5,2.92269472]
[1762603871651,1.166793,3421.6,3421.5,2.92269472]
[1762603871845,0.5492,3421.6,3421.5,2.92269472]
[1762603872566,0.73041876,3421.6,3421.5,2.92269472]
[1762603874252,0.73041876,3421.6,3421.1,2.92300024]
[1762603874448,0.4787,3421.5,3420.8,2.92329279]
[1762603874655,0.4787,3421.5,3421.3,2.92278935]
[1762603875158,0.0706,3421.4,3421.2,2.92295101]
[1762603875376,0.4787,3421.5,3421.4,2.92278014]
[1762603875681,0.18121876,3421.6,3421.5,2.92269472]
[1762603876069,0.73031876,3421.6,3421.5,2.92269472]
[1762603876272,0.73031876,3421.6,3420.6,0.001]
[1762603876458,0.65934064,3421.5,3421.1,2.92295424]
[1762603876781,0.65934064,3421.5,3421.3,2.92285709]
[1762603876982,0.4787,3421.4,3421.3,2.92285709]
[1762603877180,0.5493,3421.4,3421.3,2.92285709]
[1762603882579,0.617593,3421.6,3421.5,2.92269472]
[1762603882767,0.617593,3421.7,3421.5,2.92269472]
[1762603882964,1.76201508,3421.7,3421.5,2.92261654]
[1762603883174,1.166693,3421.6,3421.5,2.92261654]
[1762603884207,1.166693,3421.6,3420.5,3.39499472]
[1762603884506,0.1456,3421.3,3421.2,2.92295101]
[1762603884701,0.4787,3421.5,3421.2,2.92295101]
[1762603884702,0.4787,3421.5,3421.4,2.92278014]
[1762603885090,0.5493,3421.5,3421.4,2.92278014]
[1762603885302,0.1456,3421.4,3421.3,2.92286557]
[1762603885612,5.85272783,3421.8,3420.8,2.92326227]
[1762603885901,1.09776981,3421.7,3420.6,0.4725]
[1762603886093,0.1456,3421.1,3421.0,2.92312189]
[1762603886603,0.2162,3421.1,3421.0,2.92312189]
[1762603886777,0.2202,3421.1,3421.0,2.92312189]
[1762603887906,0.6908,3421.1,3421.0,2.92312189]
[1762603888200,0.2202,3421.1,3421.0,2.92312189]
[1762603888997,0.83926981,3421.1,3421.0,2.92312189]
[1762603889916,1.30986981,3421.1,3421.0,2.92312189]
[1762603890215,1.90308099,3421.1,3421.0,2.92312189]
[1762603890870,1.43248099,3421.1,3421.0,2.92312189]
[1762603891070,0.83926981,3421.1,3421.0,2.92312189]
[1762603891619,0.2181,3421.1,3421.0,2.92312189]
[1762603891804,0.2181,3421.1,3421.0,2.92412189]
[1762603892118,0.1456,3421.1,3421.0,3.41972189]
[1762603894700,0.2181,3421.1,3421.0,2.92412189]
[1762603895399,0.83716981,3421.1,3421.0,2.92412189]
[1762603895589,0.1456,3421.1,3421.0,2.92412189]
[1762603896008,0.84116981,3421.1,3421.0,2.92412189]
[1762603896216,0.2221,3421.1,3421.0,2.92412189]
[1762603896624,0.76466981,3421.1,3421.0,2.92412189]
[1762603896922,0.1456,3421.1,3421.0,2.92412189]
[1762603897317,0.84116981,3421.1,3421.0,2.92412189]
[1762603897490,0.2221,3421.1,3421.0,2.92412189]
[1762603897923,7.31674497,3421.1,3421.0,0.001]
[1762603898141,0.405504,3421.0,3420.6,0.001]
[1762603898290,6.47675798,3420.7,3420.6,0.001]
[1762603898600,10.01920604,3420.7,3420.6,0.001]
[1762603898803,1.665216,3420.3,3420.2,0.001]
[1762603899146,9.83554793,3420.3,3420.2,0.001]
[1762603899342,10.31234793,3420.3,3420.2,0.001]
[1762603899647,8.41821983,3420.3,3420.2,0.001]
[1762603899812,7.38862779,3420.3,3420.2,0.001]
[1762603899989,8.28222673,3420.3,3420.2,0.001]
[1762603900447,3.65998475,3420.3,3420.2,0.001]
[1762603901092,4.43076141,3420.3,3420.2,0.001]
[1762603901321,2.77768075,3420.3,3420.2,0.001]
[1762603901522,2.36088181,3420.3,3420.2,0.001]
[1762603901888,1.88408181,3420.3,3420.2,0.001]
[1762603902324,1.265012,3420.3,3420.2,0.001]
[1762603902506,1.265012,3420.3,3420.2,2.92480562]
[1762603903250,1.259712,3420.3,3420.2,3.39640562]
[1762603903397,0.1846,3420.7,3420.5,2.92347282]
[1762603903597,0.1846,3420.7,3420.6,2.92346371]
[1762603903810,0.2595,3420.7,3420.6,2.92346371]
[1762603904147,0.61645856,3421.0,3420.7,2.92336767]
[1762603904295,0.37138684,3421.0,3420.7,2.92336767]
[1762603904496,0.076,3420.8,3420.7,2.92336767]
[1762603905407,0.45859996,3421.0,3420.9,2.92320734]
[1762603905802,0.53849996,3421.0,3420.8,2.92325861]
[1762603906003,0.1836,3420.9,3420.8,2.92325861]
[1762603906216,0.1836,3420.9,3420.7,2.92334082]
[1762603906217,0.43980805,3420.9,3420.7,2.92334082]
[1762603906594,0.4776,3420.8,3420.7,2.92337779]
[1762603907000,0.1836,3420.9,3420.8,2.92329279]
[1762603907324,0.45859996,3421.0,3420.9,2.92320734]
[1762603907729,0.53449996,3421.0,3420.9,2.92320734]
[1762603908726,0.53449996,3421.0,3420.5,2.92354918]
[1762603908930,0.53449996,3421.0,3420.8,2.92329279]
[1762603909332,0.53449996,3421.0,3420.9,2.92320734]
[1762603909637,0.61652607,3421.2,3421.0,2.92312189]
[1762603909843,1.38730273,3421.6,3421.0,2.92312189]
[1762603910039,2.74813715,3421.5,3421.0,2.92312189]
[1762603910345,0.61652607,3421.4,3421.2,2.92291039]
[1762603910718,0.4733,3421.8,3421.3,2.92286557]
[1762603911044,0.002,3421.5,3421.3,2.92286557]
[1762603911837,0.0759,3421.4,3421.3,2.92286557]
[1762603912207,0.1456,3421.3,3421.2,2.92291654]
[1762603912407,0.0759,3421.4,3421.1,2.92303256]
[1762603912646,0.002,3421.5,3421.1,2.92303256]
[1762603912944,0.23737292,3421.5,3421.1,2.92303256]
[1762603913641,0.23737292,3421.5,3420.8,0.001]
[1762603913843,1.32739012,3421.5,3421.1,2.92295765]
[1762603914030,0.71067292,3421.5,3421.2,2.92293214]
[1762603914233,0.23737292,3421.5,3421.3,2.92284963]
[1762603914613,0.0759,3421.4,3421.3,2.92284963]
[1762603915220,0.002,3421.5,3421.3,2.92284963]
[1762603916053,0.1456,3421.3,3421.1,0.1979]
[1762603916237,0.002,3421.5,3421.2,2.92287815]
[1762603916643,0.0759,3421.3,3421.0,2.92312063]
[1762603916830,0.4694,3421.4,3421.0,2.92312063]
[1762603917030,0.4694,3421.4,3421.1,2.92301332]
[1762603917552,0.0798,3421.2,3421.1,2.92301332]
[1762603917761,0.1456,3421.1,3420.8,0.001]
[1762603917945,0.0759,3421.2,3421.1,2.92303645]
[1762603918254,0.0798,3421.2,3421.0,2.92311249]
[1762603918743,0.0837,3421.1,3421.0,2.92311249]
[1762603918918,0.0837,3421.1,3420.8,2.92429128]
[1762603918919,0.1456,3421.0,3420.8,0.001]
[1762603919119,0.0837,3421.1,3420.8,0.001]
[1762603919120,0.0046,3420.9,3420.8,0.001]
[1762603919338,0.1882,3420.9,3420.8,0.001]
[1762603919568,0.69804009,3420.9,3420.8,0.001]
[1762603920065,0.86308368,3420.9,3420.8,0.001]
[1762603920568,1.16216538,3420.9,3420.8,0.001]
[1762603920744,3.44415537,3420.9,3420.8,0.001]
[1762603920950,6.4039028,3420.9,3420.8,0.001]
[1762603921148,6.4039028,3420.9,3420.4,0.001]
[1762603921149,3.32905318,3420.5,3420.4,0.001]
[1762603921372,13.32723215,3420.5,3420.4,0.001]
[1762603921573,12.73155744,3420.5,3420.4,0.001]
[1762603921746,13.06717923,3420.5,3420.4,0.001]
[1762603921948,12.73155744,3420.5,3420.4,0.001]
[1762603922374,12.73155744,3420.5,3419.2,2.92464426]
[1762603922375,0.415504,3420.3,3418.1,0.005]
[1762603922574,1.665216,3419.4,3418.1,2.93053257]
[1762603922773,1.62581087,3419.2,3418.1,0.005]
[1762603922982,3.50229686,3419.2,3418.1,0.005]
[1762603923174,2.83098999,3419.2,3418.2,2.92549032]
[1762603923390,7.83857419,3419.2,3418.1,0.005]
[1762603923560,8.26095048,3419.2,3418.1,0.005]
[1762603923769,6.10629662,3419.2,3418.3,2.92540475]
[1762603924097,5.7310915,3419.2,3418.3,2.92542869]
[1762603924254,4.49343888,3419.2,3418.1,0.2033]
[1762603924454,2.88442053,3419.2,3418.5,2.92525716]
[1762603925355,3.32648278,3419.2,3418.1,0.005]
[1762603925587,6.25114351,3419.2,3418.1,0.005]
[1762603925755,3.28992453,3419.2,3418.1,2.93058732]
[1762603926077,3.74885453,3419.2,3418.2,2.92549846]
[1762603926391,5.40913152,3419.2,3418.2,2.92549846]
[1762603926955,5.40913152,3419.2,3418.3,2.92542241]
[1762603927595,5.40913152,3419.2,3418.2,2.92550006]
[1762603927771,8.33379225,3419.2,3418.1,3.12887368]
[1762603927970,8.33379225,3419.2,3418.2,2.92551434]
[1762603928170,5.40913152,3419.2,3418.1,0.2033]
[1762603928469,4.95019698,3419.2,3418.3,2.92542108]
[1762603928676,7.87485771,3419.2,3418.1,3.12886791]
[1762603929496,8.29404617,3419.2,3418.1,0.005]
[1762603929897,8.29404617,3419.2,3418.1,2.93059848]
[1762603930196,4.95019698,3419.2,3418.2,2.92544106]
[1762603930370,7.87485771,3419.2,3418.2,2.92544106]
[1762603930692,4.95019698,3419.2,3418.2,2.92544106]
[1762603930868,4.95019698,3419.2,3418.7,0.001]
[1762603931271,7.87485771,3419.2,3418.7,0.001]
[1762603931857,5.4091302,3419.2,3418.7,0.001]
[1762603932063,4.69365621,3419.2,3418.7,0.001]
[1762603932262,5.30660776,3419.2,3418.7,0.001]
[1762603932510,4.69365621,3419.2,3418.7,0.001]
[1762603932896,4.23472621,3419.2,3418.7,0.001]
[1762603933781,3.82922221,3419.2,3418.7,0.001]
[1762603933972,3.37892221,3419.2,3418.7,3.38242897]
[1762603934158,1.71864522,3419.2,3418.7,0.4574]
[1762603934362,1.71864522,3419.2,3419.1,0.4638]
[1762603934596,1.259712,3419.2,3419.1,0.4638]
[1762603935295,1.259712,3419.2,3419.1,4.04324627]
[1762603935515,0.002,3419.4,3419.3,2.9245752]
[1762603935814,0.002,3419.4,3419.3,0.4578]
[1762603936351,0.002,3419.4,3419.3,3.3823752]
[1762603936483,0.002,3419.4,3419.3,0.4578]
[1762603936913,0.002,3419.4,3419.3,0.9142]
[1762603937117,0.002,3419.4,3419.3,3.3823752]
[1762603937498,0.002,3419.4,3419.3,3.8387752]
[1762603939815,0.1476,3419.4,3419.3,3.8387752]
[1762603945398,0.1476,3419.4,3419.3,0.4578]
[1762603945603,0.1476,3419.4,3419.3,2.9245752]
[1762603946793,0.1476,3419.4,3419.1,3.12902576]
[1762603947097,0.002,3419.4,3419.2,2.9246599]
[1762603947607,0.0806,3419.3,3419.1,0.006]
[1762603947807,0.002,3419.4,3419.1,0.006]
[1762603948192,0.002,3419.4,3419.1,2.93072795]
[1762603948393,0.002,3419.4,3419.3,0.001]
[1762603948822,0.5512,3419.4,3419.3,0.001]
[1762603949040,0.7322912,3419.4,3419.3,0.001]
[1762603949610,0.2636912,3419.4,3419.3,0.001]
[1762603950294,0.7283912,3419.4,3419.3,0.001]
[1762603950909,1.59273408,3419.4,3419.3,0.001]
[1762603951107,3.46745793,3419.4,3419.3,0.001]
[1762603951313,4.2374648,3419.4,3419.3,0.001]
[1762603951714,6.3919476,3419.4,3419.3,0.001]
[1762603951914,7.41947948,3419.4,3419.3,0.001]
[1762603952135,7.4194799,3419.4,3419.3,0.001]
[1762603952326,6.3919476,3419.4,3419.3,0.001]
[1762603952723,2.20774593,3419.4,3419.3,0.001]
[1762603952923,1.74304593,3419.4,3419.3,0.001]
[1762603953329,2.20774593,3419.4,3419.3,0.001]
[1762603953543,3.46745793,3419.4,3419.3,0.001]
[1762603953942,2.13841505,3419.4,3419.3,0.001]
[1762603954239,0.87870305,3419.4,3419.3,0.001]
[1762603954940,2.63967117,3419.4,3419.3,0.001]
[1762603955146,3.66718316,3419.4,3419.3,0.001]
[1762603955306,6.96062071,3419.4,3419.3,0.001]
[1762603956708,1.28420705,3419.4,3419.3,0.001]
[1762603957121,1.74308676,3419.4,3419.3,0.001]
[1762603957924,1.33758276,3419.4,3419.3,0.001]
[1762603958645,3.06199476,3419.4,3419.3,0.001]
[1762603959063,3.06199476,3419.4,3416.3,0.001]
[1762603959064,0.007,3419.1,3416.3,0.001]
[1762603959380,0.007,3419.1,3414.0,0.1804]
[1762603959381,2.92782901,3415.5,3414.0,0.1804]
[1762603959542,2.02882197,3415.2,3413.3,0.6439]
[1762603959728,2.02882197,3415.0,3413.3,0.6439]
[1762603960072,0.76910997,3414.2,3413.3,0.6439]
[1762603960222,0.76910997,3414.2,3413.0,0.1804]
[1762603960223,3.8046072,3414.1,3413.0,0.1804]
[1762603960428,1.38412182,3414.0,3413.0,0.1804]
[1762603960779,0.76649397,3413.9,3413.0,0.1804]
[1762603960938,2.20750597,3413.9,3413.0,0.1804]
[1762603961138,1.05788071,3413.8,3413.0,0.1804]
[1762603961354,1.02126463,3413.8,3413.0,3.11034266]
[1762603961560,0.61501185,3413.7,3413.0,0.1804]
[1762603962078,0.40625278,3413.8,3413.0,0.1804]
[1762603962603,0.79631185,3413.9,3413.0,0.1804]
[1762603962774,0.1813,3413.9,3413.0,0.1804]
[1762603962974,0.6472,3413.9,3413.0,3.1103584]
[1762603963180,0.6472,3413.9,3413.1,2.93486078]
[1762603963760,0.6472,3413.9,3413.2,2.92978291]
[1762603964136,0.1813,3413.9,3413.1,0.005]
[1762603964445,0.4659,3413.8,3413.1,0.005]
[1762603965249,0.4399,3413.2,3413.1,0.005]
[1762603965650,0.9056,3413.2,3413.1,0.005]
[1762603966050,0.9056,3413.2,3413.1,0.006]
[1762603966474,0.405504,3413.6,3413.1,0.006]
[1762603967092,0.405504,3413.7,3413.1,0.006]
[1762603967451,0.871404,3413.7,3413.1,0.006]
[1762603968077,0.405504,3413.7,3413.1,0.1982]
[1762603968359,0.405504,3413.7,3413.1,0.006]
[1762603968854,0.78440167,3413.9,3413.1,0.1982]
[1762603969055,0.05,3414.2,3413.2,0.4992]
[1762603969275,0.05,3414.2,3413.5,2.92951779]
[1762603969476,0.405504,3414.1,3413.5,2.92951779]
[1762603969670,0.405504,3414.1,3413.2,0.4992]
[1762603969895,1.47454911,3414.1,3413.2,2.92979004]
[1762603970203,0.1464,3413.2,3413.1,3.12808778]
[1762603970708,0.1464,3413.2,3413.1,4.08318778]
[1762603972202,0.1464,3413.2,3413.1,1.1533]
[1762603972384,0.1464,3413.2,3413.1,4.08318778]
[1762603972715,0.1464,3413.2,3413.1,0.006]
[1762603972918,0.4307,3413.2,3413.1,0.006]